fUST/lending_fUST_20250729
["ID","MTS","AMOUNT","RATE_DAILY","PERIOD"]
[375753171,1753729855022,-460.0,0.00021643,2]
[375753172,1753729855032,-3354.14,0.00021643,2]
[375753173,1753729855041,-634.74,0.00021643,2]
[375753174,1753729855051,-891.84,0.00021643,2]
[375753175,1753729855060,-1202.31,0.00021643,2]
[375753176,1753729855070,-549.31,0.00021643,2]
[375753177,1753729855079,-460.0,0.00021643,2]
[375753178,1753729855091,-191.03217098,0.00021643,2]
[375753179,1753729855101,-936.5,0.00021643,2]
[375753180,1753729855110,-1181.75,0.00021643,2]
[375753181,1753729855120,-460.0,0.00021643,2]
[375753182,1753729855129,-2534.99,0.00021643,2]
[375753183,1753729855139,-178.917,0.00021666,2]
[375753184,1753729855148,-1624.351,0.00021666,2]
[375753185,1753729855158,-291.47172873,0.00021836,5]
[375753186,1753729855167,-2563.22001237,0.000219,2]
[375753187,1753729855177,-460.0,0.00021917,2]
[375753188,1753729855186,-1278.83,0.00021917,2]
[375753189,1753729855195,-460.0,0.00021917,2]
[375753190,1753729855204,-460.0,0.00021917,2]
[375753191,1753729855214,-460.0,0.00021917,2]
[375753192,1753729855223,-460.0,0.00021917,2]
[375753193,1753729855232,-460.0,0.00021917,2]
[375753194,1753729855242,-877.75,0.00021917,2]
[375753195,1753729855251,-624.57,0.00021917,2]
[375753196,1753729855260,-460.0,0.00021917,2]
[375753197,1753729855270,-472.49,0.00021917,2]
[375753198,1753729855279,-460.0,0.00021917,2]
[375753199,1753729855289,-7088.48,0.00021917,2]
[375753200,1753729855298,-460.0,0.00021917,2]
[375753201,1753729855307,-716.38,0.00021917,2]
[375753202,1753729855320,-961.79,0.00021917,2]
[375753203,1753729855330,-500.0,0.00021917,2]
[375753204,1753729855341,-500.0,0.00021917,2]
[375753205,1753729855351,-500.0,0.00021917,2]
[375753206,1753729855361,-500.0,0.00021917,2]
[375753207,1753729855370,-500.0,0.00021917,2]
[375753208,1753729855379,-500.0,0.00021917,2]
[375753209,1753729855388,-500.0,0.00021917,2]
[375753210,1753729855399,-500.0,0.00021917,2]
[375753211,1753729855408,-500.0,0.00021917,2]
[375753212,1753729855419,-500.0,0.00021917,2]
[375753213,1753729855428,-500.0,0.00021917,2]
[375753214,1753729855437,-607.14,0.00021917,2]
[375753215,1753729855446,-460.0,0.00021917,2]
[375753216,1753729855457,-460.0,0.00021917,2]
[375753217,1753729855466,-460.0,0.00021917,2]
[375753218,1753729855475,-2680.01,0.00021917,2]
[375753219,1753729855485,-2011.05,0.00021917,2]
[375753220,1753729855496,-510.00702442,0.00021917,2]
[375753221,1753729855505,-823.79,0.00021917,2]
[375753222,1753729855514,-523.5,0.00021917,2]
[375753223,1753729855524,-460.0,0.00021917,2]
[375753224,1753729855533,-460.0,0.00021917,2]
[375753225,1753729855543,-713.62,0.00021917,2]
[375753226,1753729855552,-460.0,0.00021917,2]
[375753227,1753729855561,-572.06,0.00021917,2]
[375753228,1753729855571,-3372.46,0.00021917,2]
[375753229,1753729855579,-509.18,0.00021917,2]
[375753230,1753729855589,-460.0,0.00021917,2]
[375753231,1753729855598,-468.35,0.00021917,2]
[375753232,1753729855607,-460.0,0.00021917,2]
[375753233,1753729855616,-741.03,0.00021917,2]
[375753234,1753729855626,-585.37,0.00021917,2]
[375753235,1753729855635,-533.75,0.00021917,2]
[375753236,1753729855643,-530.12,0.00021917,2]
[375753237,1753729855653,-460.0,0.00021917,2]
[375753238,1753729855662,-460.0,0.00021917,2]
[375753239,1753729855672,-1201.65,0.00021917,2]
[375753240,1753729855681,-2656.96,0.00021917,2]
[375753241,1753729855690,-460.0,0.00021917,2]
[375753242,1753729855699,-4046.5,0.00021917,2]
[375753243,1753729855710,-888.97,0.00021917,2]
[375753244,1753729855719,-8402.05,0.00021917,2]
[375753245,1753729855728,-688.6,0.00021917,2]
[375753246,1753729855738,-2328.79,0.00021917,2]
[375753247,1753729855747,-647.64,0.00021917,2]
[375753248,1753729855757,-1973.91,0.00021917,2]
[375753249,1753729855766,-460.0,0.00021917,2]
[375753250,1753729855775,-672.37,0.00021917,2]
[375753251,1753729855784,-482.15,0.00021917,2]
[375753252,1753729855793,-784.05,0.00021917,2]
[375753253,1753729855802,-973.28,0.00021917,2]
[375753254,1753729855812,-2094.51,0.00021917,2]
[375753255,1753729855821,-460.0,0.00021917,2]
[375753256,1753729855830,-1756.74,0.00021917,2]
[375753257,1753729855839,-460.0,0.00021917,2]
[375753258,1753729855848,-494.05,0.00021917,2]
[375753259,1753729855857,-740.03,0.00021917,2]
[375753260,1753729855866,-460.0,0.00021917,2]
[375753261,1753729855876,-3354.14,0.00021917,2]
[375753262,1753729855885,-634.74,0.00021917,2]
[375753263,1753729855894,-891.84,0.00021917,2]
[375753264,1753729855904,-1202.31,0.00021917,2]
[375753265,1753729855914,-549.31,0.00021917,2]
[375753266,1753729855923,-344.02726628,0.00021917,2]
[375753267,1753729855932,-936.5,0.00021917,2]
[375753268,1753729855942,-1181.75,0.00021917,2]
[375753269,1753729855951,-460.0,0.00021917,2]
[375753270,1753729855960,-2534.99,0.00021917,2]
[375753271,1753729855969,-150.0,0.00021918,2]
[375753272,1753729855978,-500.0,0.00021918,2]
[375753273,1753729855987,-488.09798802,0.00021918,2]
[375753274,1753729855997,-500.0,0.00021918,2]
[375753275,1753729856006,-460.0,0.00021944,2]
[375753276,1753729856015,-826.0,0.00021955,4]
[375753277,1753729856132,-1375.66,0.00022,7]
[375753278,1753729856142,-13614.55,0.00022,7]
[375753279,1753729856151,-3575.19,0.00022,7]
[375753280,1753729856160,-46633.0,0.00022,2]
[375753281,1753729856172,-183.761024,0.00022,4]
[375753282,1753729856182,-214.87999826,0.00022,7]
[375753283,1753729856194,-454.6043428,0.00022,7]
[375753284,1753729856203,-151.0,0.00022,2]
[375753285,1753729856213,-12634.73134317,0.00022,7]
[375753286,1753729856222,-312.16666667,0.00022,7]
[375753287,1753729856231,-197.0,0.00022,2]
[375753288,1753729856241,-183.761024,0.00022046,2]
[375753289,1753729856250,-489.3479902,0.00022186,2]
[375753290,1753729856260,-460.0,0.00022191,2]
[375753291,1753729856269,-1278.83,0.00022191,2]
[375753292,1753729856279,-460.0,0.00022191,2]
[375753293,1753729856288,-460.0,0.00022191,2]
[375753294,1753729856298,-460.0,0.00022191,2]
[375753295,1753729856307,-460.0,0.00022191,2]
[375753296,1753729856320,-460.0,0.00022191,2]
[375753297,1753729856329,-877.75,0.00022191,2]
[375753298,1753729856338,-624.57,0.00022191,2]
[375753299,1753729856348,-264.46,0.00022191,2]
[375753300,1753729856358,-472.49,0.00022191,2]
[375753301,1753729856368,-460.0,0.00022191,2]
[375753302,1753729856378,-7088.48,0.00022191,2]
[375753303,1753729856387,-716.38,0.00022191,2]
[375753304,1753729856396,-961.79,0.00022191,2]
[375753305,1753729856406,-500.0,0.00022191,2]
[375753306,1753729856415,-460.0,0.00022191,2]
[375753307,1753729856424,-460.0,0.00022191,2]
[375753308,1753729856434,-460.0,0.00022191,2]
[375753309,1753729856443,-2680.01,0.00022191,2]
[375753310,1753729856452,-2011.05,0.00022191,2]
[375753311,1753729856462,-823.79,0.00022191,2]
[375753312,1753729856471,-523.5,0.00022191,2]
[375753313,1753729856480,-460.0,0.00022191,2]
[375753314,1753729856489,-460.0,0.00022191,2]
[375753315,1753729856498,-713.62,0.00022191,2]
[375753316,1753729856507,-460.0,0.00022191,2]
[375753317,1753729856516,-572.06,0.00022191,2]
[375753318,1753729856525,-3372.46,0.00022191,2]
[375753319,1753729856535,-509.18,0.00022191,2]
[375753320,1753729856544,-460.0,0.00022191,2]
[375753321,1753729856553,-468.35,0.00022191,2]
[375753322,1753729856562,-460.0,0.00022191,2]
[375753323,1753729856571,-741.03,0.00022191,2]
[375753324,1753729856580,-585.37,0.00022191,2]
[375753325,1753729856589,-533.75,0.00022191,2]
[375753326,1753729856599,-530.12,0.00022191,2]
[375753327,1753729856608,-355.95173932,0.00022191,2]
[375753328,1753729856617,-460.0,0.00022191,2]
[375753329,1753729856626,-1201.65,0.00022191,2]
[375753330,1753729856635,-2656.96,0.00022191,2]
[375753331,1753729856645,-460.0,0.00022191,2]
[375753332,1753729856654,-4046.5,0.00022191,2]
[375753333,1753729856664,-888.97,0.00022191,2]
[375753334,1753729856673,-8402.05,0.00022191,2]
[375753335,1753729856682,-688.6,0.00022191,2]
[375753336,1753729856692,-2328.79,0.00022191,2]
[375753337,1753729856701,-647.64,0.00022191,2]
[375753338,1753729856710,-1973.91,0.00022191,2]
[375753339,1753729856719,-460.0,0.00022191,2]
[375753340,1753729856728,-672.37,0.00022191,2]
[375753341,1753729856738,-482.15,0.00022191,2]
[375753342,1753729856747,-784.05,0.00022191,2]
[375753343,1753729856756,-973.28,0.00022191,2]
[375753344,1753729856766,-2094.51,0.00022191,2]
[375753345,1753729856774,-460.0,0.00022191,2]
[375753346,1753729856784,-1756.74,0.00022191,2]
[375753347,1753729856793,-460.0,0.00022191,2]
[375753348,1753729856802,-494.05,0.00022191,2]
[375753349,1753729856811,-460.0,0.00022191,2]
[375753350,1753729856820,-740.03,0.00022191,2]
[375753351,1753729856830,-3354.14,0.00022191,2]
[375753352,1753729856839,-634.74,0.00022191,2]
[375753353,1753729856848,-891.84,0.00022191,2]
[375753354,1753729856857,-1202.31,0.00022191,2]
[375753355,1753729856866,-549.31,0.00022191,2]
[375753356,1753729856878,-936.5,0.00022191,2]
[375753357,1753729856888,-1181.75,0.00022191,2]
[375753358,1753729856897,-460.0,0.00022191,2]
[375753359,1753729856906,-2534.99,0.00022191,2]
[375753360,1753729856915,-826.0,0.00022323,4]
[375753361,1753729856925,-179.73040439,0.00022396,2]
[375753362,1753729856936,-460.0,0.00022465,2]
[375753363,1753729856945,-1278.83,0.00022465,2]
[375753364,1753729856954,-460.0,0.00022465,2]
[375753365,1753729856963,-460.0,0.00022465,2]
[375753366,1753729856973,-460.0,0.00022465,2]
[375753367,1753729856982,-191.25,0.00022465,2]
[375753368,1753729856991,-460.0,0.00022465,2]
[375753369,1753729857000,-877.75,0.00022465,2]
[375753370,1753729857009,-624.57,0.00022465,2]
[375753371,1753729857020,-472.49,0.00022465,2]
[375753372,1753729857030,-460.0,0.00022465,2]
[375753373,1753729857039,-7088.48,0.00022465,2]
[375753374,1753729857049,-716.38,0.00022465,2]
[375753375,1753729857058,-961.79,0.00022465,2]
[375753376,1753729857067,-500.0,0.00022465,2]
[375753377,1753729857077,-460.0,0.00022465,2]
[375753378,1753729857086,-460.0,0.00022465,2]
[375753379,1753729857097,-460.98261504,0.00022465,2]
[375753380,1753729857106,-2680.01,0.00022465,2]
[375753381,1753729857115,-2011.05,0.00022465,2]
[375753382,1753729857124,-823.79,0.00022465,2]
[375753383,1753729857133,-523.5,0.00022465,2]
[375753384,1753729857142,-460.0,0.00022465,2]
[375753385,1753729857151,-460.0,0.00022465,2]
[375753386,1753729857160,-713.62,0.00022465,2]
[375753387,1753729857169,-460.0,0.00022465,2]
[375753388,1753729857178,-572.06,0.00022465,2]
[375753389,1753729857187,-3372.46,0.00022465,2]
[375753390,1753729857197,-509.18,0.00022465,2]
[375753391,1753729857206,-192.31603521,0.00022465,2]
[375753392,1753729857215,-468.35,0.00022465,2]
[375753393,1753729857224,-460.0,0.00022465,2]
[375753394,1753729857233,-741.03,0.00022465,2]
[375753395,1753729857242,-585.37,0.00022465,2]
[375753396,1753729857251,-533.75,0.00022465,2]
[375753397,1753729857260,-530.12,0.00022465,2]
[375753398,1753729857270,-1201.65,0.00022465,2]
[375753399,1753729857278,-460.0,0.00022465,2]
[375753400,1753729857287,-2656.96,0.00022465,2]
[375753401,1753729857297,-460.0,0.00022465,2]
[375753402,1753729857306,-4046.5,0.00022465,2]
[375753403,1753729857319,-888.97,0.00022465,2]
[375753404,1753729857330,-8402.05,0.00022465,2]
[375753405,1753729857340,-688.6,0.00022465,2]
[375753406,1753729857349,-2328.79,0.00022465,2]
[375753407,1753729857359,-647.64,0.00022465,2]
[375753408,1753729857368,-1973.91,0.00022465,2]
[375753409,1753729857377,-460.0,0.00022465,2]
[375753410,1753729857387,-672.37,0.00022465,2]
[375753411,1753729857396,-482.15,0.00022465,2]
[375753412,1753729857408,-784.05,0.00022465,2]
[375753413,1753729857417,-973.28,0.00022465,2]
[375753414,1753729857426,-2094.51,0.00022465,2]
[375753415,1753729857435,-460.0,0.00022465,2]
[375753416,1753729857444,-1756.74,0.00022465,2]
[375753417,1753729857453,-460.0,0.00022465,2]
[375753418,1753729857463,-494.05,0.00022465,2]
[375753419,1753729857471,-740.03,0.00022465,2]
[375753420,1753729857481,-460.0,0.00022465,2]
[375753421,1753729857490,-3354.14,0.00022465,2]
[375753422,1753729857499,-634.74,0.00022465,2]
[375753423,1753729857509,-891.84,0.00022465,2]
[375753424,1753729857518,-1202.31,0.00022465,2]
[375753425,1753729857528,-549.31,0.00022465,2]
[375753426,1753729857537,-936.5,0.00022465,2]
[375753427,1753729857546,-1181.75,0.00022465,2]
[375753428,1753729857555,-460.0,0.00022465,2]
[375753429,1753729857564,-2534.99,0.00022465,2]
[375753430,1753729857573,-300.0,0.00022466,2]
[375753431,1753729857582,-972.678,0.00022483,2]
[375753432,1753729857591,-560.0,0.00022492,2]
[375753433,1753729857600,-407.0,0.00022493,2]
[375753434,1753729857609,-424.33,0.00022493,2]
[375753435,1753729857618,-247.932095,0.00022603,2]
[375753436,1753729857627,-826.0,0.00022691,5]
[375753437,1753729857637,-202.0,0.00022707,2]
[375753438,1753729857646,-227.207,0.00022707,2]
[375753439,1753729857655,-150.0,0.00022707,2]
[375753440,1753729857663,-150.0,0.00022707,2]
[375753441,1753729857672,-150.0,0.00022707,2]
[375753442,1753729857681,-460.0,0.00022739,2]
[375753443,1753729857690,-1278.83,0.00022739,2]
[375753444,1753729857699,-460.0,0.00022739,2]
[375753445,1753729857708,-460.0,0.00022739,2]
[375753446,1753729857717,-460.0,0.00022739,2]
[375753447,1753729857726,-460.0,0.00022739,2]
[375753448,1753729857736,-877.75,0.00022739,2]
[375753449,1753729857745,-624.57,0.00022739,2]
[375753450,1753729857754,-472.49,0.00022739,2]
[375753451,1753729857763,-460.0,0.00022739,2]
[375753452,1753729857772,-7088.48,0.00022739,2]
[375753453,1753729857781,-716.38,0.00022739,2]
[375753454,1753729857790,-961.79,0.00022739,2]
[375753455,1753729857799,-500.0,0.00022739,2]
[375753456,1753729857808,-460.0,0.00022739,2]
[375753457,1753729857817,-460.0,0.00022739,2]
[375753458,1753729857826,-2680.01,0.00022739,2]
[375753459,1753729857835,-2011.05,0.00022739,2]
[375753460,1753729857845,-823.79,0.00022739,2]
[375753461,1753729857853,-523.5,0.00022739,2]
[375753462,1753729857862,-460.0,0.00022739,2]
[375753463,1753729857871,-713.62,0.00022739,2]
[375753464,1753729857880,-460.0,0.00022739,2]
[375753465,1753729857889,-572.06,0.00022739,2]
[375753466,1753729857898,-3372.46,0.00022739,2]
[375753467,1753729857907,-509.18,0.00022739,2]
[375753468,1753729857916,-468.35,0.00022739,2]
[375753469,1753729857925,-460.0,0.00022739,2]
[375753470,1753729857934,-741.03,0.00022739,2]
[375753471,1753729857943,-585.37,0.00022739,2]
[375753472,1753729857952,-533.75,0.00022739,2]
[375753473,1753729857962,-530.12,0.00022739,2]
[375753474,1753729857971,-1201.65,0.00022739,2]
[375753475,1753729857980,-460.0,0.00022739,2]
[375753476,1753729857989,-2656.96,0.00022739,2]
[375753477,1753729857998,-457.43506182,0.00022739,2]
[375753478,1753729858007,-4046.5,0.00022739,2]
[375753479,1753729858016,-888.97,0.00022739,2]
[375753480,1753729858025,-8402.05,0.00022739,2]
[375753481,1753729858034,-688.6,0.00022739,2]
[375753482,1753729858043,-2328.79,0.00022739,2]
[375753483,1753729858052,-647.64,0.00022739,2]
[375753484,1753729858061,-1973.91,0.00022739,2]
[375753485,1753729858071,-672.37,0.00022739,2]
[375753486,1753729858080,-460.0,0.00022739,2]
[375753487,1753729858089,-482.15,0.00022739,2]
[375753488,1753729858099,-784.05,0.00022739,2]
[375753489,1753729858108,-973.28,0.00022739,2]
[375753490,1753729858117,-2094.51,0.00022739,2]
[375753491,1753729858127,-460.0,0.00022739,2]
[375753492,1753729858136,-1756.74,0.00022739,2]
[375753493,1753729858145,-460.0,0.00022739,2]
[375753494,1753729858154,-494.05,0.00022739,2]
[375753495,1753729858163,-740.03,0.00022739,2]
[375753496,1753729858173,-460.0,0.00022739,2]
[375753497,1753729858182,-3354.14,0.00022739,2]
[375753498,1753729858191,-634.74,0.00022739,2]
[375753499,1753729858200,-891.84,0.00022739,2]
[375753500,1753729858209,-1202.31,0.00022739,2]
[375753501,1753729858218,-549.31,0.00022739,2]
[375753502,1753729858228,-936.5,0.00022739,2]
[375753503,1753729858237,-1181.75,0.00022739,2]
[375753504,1753729858246,-460.0,0.00022739,2]
[375753505,1753729858255,-2534.99,0.00022739,2]
[375753506,1753729858265,-183.761024,0.00022763,4]
[375753507,1753729858274,-150.0,0.00022804,2]
[375753508,1753729858283,-150.821,0.00022804,2]
[375753509,1753729858293,-2159.0,0.00022804,2]
[375753510,1753729858301,-322.0,0.00022837,2]
[375753511,1753729858311,-322.0,0.00022903,2]
[375753512,1753729858325,-25000.0,0.0002291,2]
[375753513,1753729858334,-151.0,0.0002291,2]
[375753514,1753729858346,-14012.72516851,0.0002295,2]
[375753515,1753729858355,-322.0,0.00022963,2]
[375753516,1753729858364,-322.0,0.00022985,2]
[375753517,1753729858373,-183.761024,0.00022998,2]
[375753518,1753729858382,-3000.0,0.00023,2]
[375753519,1753729858392,-1491.97,0.00023,2]
[375753520,1753729858402,-160.0,0.00023,2]
[375753521,1753729858410,-3000.0,0.0002301,2]
[375753522,1753729858419,-460.0,0.00023013,2]
[375753523,1753729858428,-1278.83,0.00023013,2]
[375753524,1753729858437,-460.0,0.00023013,2]
[375753525,1753729858446,-460.0,0.00023013,2]
[375753526,1753729858455,-591.97,0.00023013,2]
[375753527,1753729858566,-877.75,0.00023013,2]
[375753528,1753729858575,-624.57,0.00023013,2]
[375753529,1753729858584,-472.49,0.00023013,2]
[375753530,1753729858596,-460.0,0.00023013,2]
[375753531,1753729858606,-7088.48,0.00023013,2]
[375753532,1753729858615,-716.38,0.00023013,2]
[375753533,1753729858626,-961.79,0.00023013,2]
[375753534,1753729858637,-509.37948221,0.00023013,2]
[375753535,1753729858647,-460.0,0.00023013,2]
[375753536,1753729858657,-460.0,0.00023013,2]
[375753537,1753729858666,-2680.01,0.00023013,2]
[375753538,1753729858675,-2011.05,0.00023013,2]
[375753539,1753729858685,-823.79,0.00023013,2]
[375753540,1753729858695,-523.5,0.00023013,2]
[375753541,1753729858705,-460.0,0.00023013,2]
[375753542,1753729858714,-713.62,0.00023013,2]
[375753543,1753729858723,-460.0,0.00023013,2]
[375753544,1753729858732,-572.06,0.00023013,2]
[375753545,1753729858742,-3372.46,0.00023013,2]
[375753546,1753729858751,-509.18,0.00023013,2]
[375753547,1753729858760,-468.35,0.00023013,2]
[375753548,1753729858769,-460.0,0.00023013,2]
[375753549,1753729858778,-741.03,0.00023013,2]
[375753550,1753729858787,-585.37,0.00023013,2]
[375753551,1753729858796,-533.75,0.00023013,2]
[375753552,1753729858806,-530.12,0.00023013,2]
[375753553,1753729858815,-1201.65,0.00023013,2]
[375753554,1753729858824,-460.0,0.00023013,2]
[375753555,1753729858834,-2656.96,0.00023013,2]
[375753556,1753729858844,-4046.5,0.00023013,2]
[375753557,1753729858853,-888.97,0.00023013,2]
[375753558,1753729858862,-8402.05,0.00023013,2]
[375753559,1753729858871,-688.6,0.00023013,2]
[375753560,1753729858880,-2328.79,0.00023013,2]
[375753561,1753729858890,-647.64,0.00023013,2]
[375753562,1753729858900,-1973.91,0.00023013,2]
[375753563,1753729858909,-672.37,0.00023013,2]
[375753564,1753729858918,-526.66642539,0.00023013,2]
[375753565,1753729858927,-482.15,0.00023013,2]
[375753566,1753729858936,-784.05,0.00023013,2]
[375753567,1753729858947,-973.28,0.00023013,2]
[375753568,1753729858956,-2094.51,0.00023013,2]
[375753569,1753729858965,-1756.74,0.00023013,2]
[375753570,1753729858975,-434.06559774,0.00023013,2]
[375753571,1753729858985,-494.05,0.00023013,2]
[375753572,1753729858994,-740.03,0.00023013,2]
[375753573,1753729859005,-460.0,0.00023013,2]
[375753574,1753729859015,-3354.14,0.00023013,2]
[375753575,1753729859025,-634.74,0.00023013,2]
[375753576,1753729859034,-891.84,0.00023013,2]
[375753577,1753729859044,-1202.31,0.00023013,2]
[375753578,1753729859053,-549.31,0.00023013,2]
[375753579,1753729859062,-936.5,0.00023013,2]
[375753580,1753729859072,-1181.75,0.00023013,2]
[375753581,1753729859081,-460.0,0.00023013,2]
[375753582,1753729859092,-2534.99,0.00023013,2]
[375753583,1753729859101,-151.0,0.00023014,7]
[375753584,1753729859110,-197.0,0.00023014,7]
[375753585,1753729859119,-3000.0,0.0002302,2]
[375753586,1753729859129,-3000.0,0.0002303,2]
[375753587,1753729859139,-3000.0,0.0002304,2]
[375753588,1753729859149,-660.0,0.0002304,2]
[375753589,1753729859158,-3000.0,0.0002305,2]
[375753590,1753729859167,-826.0,0.00023059,5]
[375753591,1753729859176,-3000.0,0.0002306,2]
[375753592,1753729859186,-3000.0,0.0002307,2]
[375753593,1753729859195,-454.28546416,0.00023073,2]
[375753594,1753729859205,-3000.0,0.0002308,2]
[375753595,1753729859214,-322.0,0.00023086,2]
[375753596,1753729859223,-3000.0,0.0002309,2]
[375753597,1753729859233,-3000.0,0.000231,2]
[375753598,1753729859242,-3000.0,0.0002311,2]
[375753599,1753729859252,-322.0,0.00023117,2]
[375753600,1753729859262,-3000.0,0.0002312,2]
[375753601,1753729859271,-3000.0,0.0002313,2]
[375753602,1753729859281,-3000.0,0.0002314,2]
[375753603,1753729859290,-3000.0,0.0002315,2]
[375753604,1753729859299,-3371.049952,0.0002316,2]
[375753605,1753729859309,-183.761024,0.0002318,5]
[375753606,1753729859322,-46633.0,0.000232,2]
[375753607,1753729859331,-489.3479902,0.00023222,2]
[375753608,1753729859343,-460.0,0.00023287,2]
[375753609,1753729859353,-1278.83,0.00023287,2]
[375753610,1753729859362,-460.0,0.00023287,2]
[375753611,1753729859372,-241.05363665,0.00023287,2]
[375753612,1753729859381,-877.75,0.00023287,2]
[375753613,1753729859393,-624.57,0.00023287,2]
[375753614,1753729859402,-472.49,0.00023287,2]
[375753615,1753729859412,-500.0,0.00023287,2]
[375753616,1753729859422,-460.0,0.00023287,2]
[375753617,1753729859432,-7088.48,0.00023287,2]
[375753618,1753729859442,-716.38,0.00023287,2]
[375753619,1753729859450,-961.79,0.00023287,2]
[375753620,1753729859459,-460.0,0.00023287,2]
[375753621,1753729859469,-460.0,0.00023287,2]
[375753622,1753729859478,-2680.01,0.00023287,2]
[375753623,1753729859487,-503.81332379,0.00023287,8]
[375753624,1753729859496,-500.0,0.00023287,8]
[375753625,1753729859506,-2011.05,0.00023287,2]
[375753626,1753729859515,-823.79,0.00023287,2]
[375753627,1753729859524,-523.5,0.00023287,2]
[375753628,1753729859533,-460.0,0.00023287,2]
[375753629,1753729859543,-713.62,0.00023287,2]
[375753630,1753729859553,-460.0,0.00023287,2]
[375753631,1753729859562,-572.06,0.00023287,2]
[375753632,1753729859571,-3372.46,0.00023287,2]
[375753633,1753729859581,-509.18,0.00023287,2]
[375753634,1753729859590,-468.35,0.00023287,2]
[375753635,1753729859601,-388.99381343,0.00023287,2]
[375753636,1753729859611,-741.03,0.00023287,2]
[375753637,1753729859621,-585.37,0.00023287,2]
[375753638,1753729859630,-533.75,0.00023287,2]
[375753639,1753729859639,-530.12,0.00023287,2]
[375753640,1753729859648,-1201.65,0.00023287,2]
[375753641,1753729859657,-460.0,0.00023287,2]
[375753642,1753729859666,-2656.96,0.00023287,2]
[375753643,1753729859675,-4046.5,0.00023287,2]
[375753644,1753729859685,-888.97,0.00023287,2]
[375753645,1753729859694,-8402.05,0.00023287,2]
[375753646,1753729859704,-688.6,0.00023287,2]
[375753647,1753729859713,-2328.79,0.00023287,2]
[375753648,1753729859722,-647.64,0.00023287,2]
[375753649,1753729859731,-1973.91,0.00023287,2]
[375753650,1753729859741,-672.37,0.00023287,2]
[375753651,1753729859750,-482.15,0.00023287,2]
[375753652,1753729859759,-784.05,0.00023287,2]
[375753653,1753729859769,-973.28,0.00023287,2]
[375753654,1753729859778,-2094.51,0.00023287,2]
[375753655,1753729859788,-1756.74,0.00023287,2]
[375753656,1753729859797,-494.05,0.00023287,2]
[375753657,1753729859806,-740.03,0.00023287,2]
[375753658,1753729859815,-460.0,0.00023287,2]
[375753659,1753729859824,-3354.14,0.00023287,2]
[375753660,1753729859834,-634.74,0.00023287,2]
[375753661,1753729859843,-891.84,0.00023287,2]
[375753662,1753729859853,-1202.31,0.00023287,2]
[375753663,1753729859862,-549.31,0.00023287,2]
[375753664,1753729859871,-936.5,0.00023287,2]
[375753665,1753729859881,-1181.75,0.00023287,2]
[375753666,1753729859890,-460.0,0.00023287,2]
[375753667,1753729859899,-2534.99,0.00023287,2]
[375753668,1753729859909,-1375.66,0.000233,7]
[375753669,1753729859918,-13614.55,0.000233,7]
[375753670,1753729859928,-322.0,0.00023344,2]